[Event "Titled Tuesday Blitz May 03 Early 2022"]
[White "Ovezdurdyyeva, Jemal"]
[Black "Begunov, Konstantin"]
[WhiteFideId "14001888"]
[BlackFideId "4118510"]
[WhiteElo "1946"]
[BlackElo "2262"]
[Result "1-0"]
[Round "11"]
[TimeControl "180+1"]
[Date "2022.05.03"]
[WhiteClock "0:01:06"]
[BlackClock "0:00:07"]

1. e4 {[%clk 0:03:00]}  c5 {[%clk 0:02:56]} 2. Nf3 {[%clk 0:03:00]}  d6 {[%clk 0:02:54]} 3. d4 {[%clk 0:03:00]}  cxd4 {[%clk 0:02:55]} 4. Nxd4 {[%clk 0:03:01]}  Nf6 {[%clk 0:02:55]} 5. Nc3 {[%clk 0:03:01]}  a6 {[%clk 0:02:56]} 6. Bc4 {[%clk 0:03:02]}  e6 {[%clk 0:02:56]} 7. O-O {[%clk 0:03:01]}  Nbd7 {[%clk 0:02:55]} 8. Qe2 {[%clk 0:02:51]}  Nc5 {[%clk 0:02:55]} 9. a3 {[%clk 0:02:47]}  b5 {[%clk 0:02:54]} 10. Ba2 {[%clk 0:02:46]}  Bb7 {[%clk 0:02:55]} 11. f3 {[%clk 0:02:44]}  Be7 {[%clk 0:02:54]} 12. b4 {[%clk 0:02:44]}  Ncd7 {[%clk 0:02:38]} 13. Bxe6 {[%clk 0:02:34]}  fxe6 {[%clk 0:02:34]} 14. Nxe6 {[%clk 0:02:35]}  Qc8 {[%clk 0:02:33]} 15. Nxg7+ {[%clk 0:02:34]}  Kf7 {[%clk 0:02:33]} 16. Nf5 {[%clk 0:02:32]}  Qxc3 {[%clk 0:02:22]} 17. Bg5 {[%clk 0:02:24]}  Rac8 {[%clk 0:02:15]} 18. Rad1 {[%clk 0:02:16]}  Qxc2 {[%clk 0:02:08]} 19. Rd2 {[%clk 0:02:13]}  Qc4 {[%clk 0:02:08]} 20. Qf2 {[%clk 0:02:13]}  Qe6 {[%clk 0:01:37]} 21. Rfd1 {[%clk 0:02:09]}  Rc6 {[%clk 0:00:59]} 22. Nd4 {[%clk 0:01:54]}  Qe5 {[%clk 0:00:58]} 23. Nxc6 {[%clk 0:01:50]}  Bxc6 {[%clk 0:00:59]} 24. Qe3 {[%clk 0:01:47]}  Rg8 {[%clk 0:00:55]} 25. Bf4 {[%clk 0:01:47]}  Qe6 {[%clk 0:00:43]} 26. Bxd6 {[%clk 0:01:46]}  Bxd6 {[%clk 0:00:35]} 27. Rxd6 {[%clk 0:01:47]}  Qh3 {[%clk 0:00:34]} 28. Qb3+ {[%clk 0:01:40]}  Bd5 {[%clk 0:00:24]} 29. Qb2 {[%clk 0:01:33]}  Be6 {[%clk 0:00:20]} 30. e5 {[%clk 0:01:24]}  Nh5 {[%clk 0:00:13]} 31. Qd2 {[%clk 0:01:22]}  Nf8 {[%clk 0:00:11]} 32. Rxa6 {[%clk 0:01:14]}  Qf5 {[%clk 0:00:11]} 33. Ra7+ {[%clk 0:01:13]}  Kg6 {[%clk 0:00:11]} 34. g4 {[%clk 0:01:10]}  Qxe5 {[%clk 0:00:08]} 35. gxh5+ {[%clk 0:01:07]}  Kxh5+ {[%clk 0:00:09]} 36. Kh1 {[%clk 0:01:07]}  Ng6 {[%clk 0:00:07]} 37. Rxh7# {[%clk 0:01:06]} 1-0


[Site "https://www.chess.com"]

[Event "Titled Tuesday Blitz May 03 Early 2022"]
[White "Perez Gormaz, Matias"]
[Black "Melian, Juan Sebastian"]
[WhiteFideId "3406342"]
[BlackFideId "3706575"]
[WhiteElo "2322"]
[BlackElo "1842"]
[Result "0-1"]
[Round "11"]
[TimeControl "180+1"]
[Date "2022.05.03"]
[WhiteClock "0:00:05"]
[BlackClock "0:00:07"]

1. a3 {[%clk 0:03:00]}  d5 {[%clk 0:02:56]} 2. b4 {[%clk 0:03:00]}  c6 {[%clk 0:02:57]} 3. Bb2 {[%clk 0:03:00]}  Nf6 {[%clk 0:02:58]} 4. d3 {[%clk 0:02:59]}  Bf5 {[%clk 0:02:58]} 5. Nd2 {[%clk 0:03:00]}  e6 {[%clk 0:02:58]} 6. g3 {[%clk 0:03:00]}  h6 {[%clk 0:02:58]} 7. Bg2 {[%clk 0:03:00]}  Be7 {[%clk 0:02:59]} 8. e4 {[%clk 0:03:01]}  Bh7 {[%clk 0:02:58]} 9. Nh3 {[%clk 0:02:54]}  a5 {[%clk 0:02:57]} 10. c3 {[%clk 0:02:51]}  axb4 {[%clk 0:02:48]} 11. axb4 {[%clk 0:02:51]}  Rxa1 {[%clk 0:02:47]} 12. Qxa1 {[%clk 0:02:52]}  d4 {[%clk 0:02:47]} 13. O-O {[%clk 0:02:46]}  dxc3 {[%clk 0:02:47]} 14. Bxc3 {[%clk 0:02:46]}  O-O {[%clk 0:02:48]} 15. Nf4 {[%clk 0:02:33]}  g5 {[%clk 0:02:31]} 16. Ne2 {[%clk 0:02:27]}  Qxd3 {[%clk 0:02:28]} 17. Nc1 {[%clk 0:02:25]}  Qd8 {[%clk 0:02:24]} 18. Ncb3 {[%clk 0:02:09]}  Nbd7 {[%clk 0:02:19]} 19. Rd1 {[%clk 0:02:03]}  Qc7 {[%clk 0:02:14]} 20. Qa7 {[%clk 0:01:24]}  Rb8 {[%clk 0:01:33]} 21. Ra1 {[%clk 0:01:21]}  Nb6 {[%clk 0:01:26]} 22. Nc5 {[%clk 0:01:14]}  Ne8 {[%clk 0:00:56]} 23. Qa2 {[%clk 0:00:39]}  Ra8 {[%clk 0:00:45]} 24. Qb2 {[%clk 0:00:38]}  Rxa1+ {[%clk 0:00:45]} 25. Qxa1 {[%clk 0:00:39]}  Nd7 {[%clk 0:00:33]} 26. Nd3 {[%clk 0:00:35]}  Bf6 {[%clk 0:00:29]} 27. Bxf6 {[%clk 0:00:33]}  Nexf6 {[%clk 0:00:29]} 28. h3 {[%clk 0:00:29]}  Qd6 {[%clk 0:00:28]} 29. Qc3 {[%clk 0:00:27]}  e5 {[%clk 0:00:26]} 30. Nc4 {[%clk 0:00:25]}  Qe6 {[%clk 0:00:17]} 31. f3 {[%clk 0:00:25]}  Nh5 {[%clk 0:00:13]} 32. Kf2 {[%clk 0:00:23]}  f6 {[%clk 0:00:14]} 33. Bf1 {[%clk 0:00:21]}  Bg6 {[%clk 0:00:13]} 34. Na5 {[%clk 0:00:22]}  Bf7 {[%clk 0:00:13]} 35. Nxb7 {[%clk 0:00:21]}  Ng7 {[%clk 0:00:11]} 36. Nb2 {[%clk 0:00:18]}  Qe7 {[%clk 0:00:11]} 37. Bc4 {[%clk 0:00:18]}  Ne6 {[%clk 0:00:10]} 38. Bxe6 {[%clk 0:00:15]}  Qxe6 {[%clk 0:00:11]} 39. Na5 {[%clk 0:00:13]}  c5 {[%clk 0:00:09]} 40. bxc5 {[%clk 0:00:13]}  Qa2 {[%clk 0:00:10]} 41. Ke3 {[%clk 0:00:12]}  Nxc5 {[%clk 0:00:09]} 42. Qxc5 {[%clk 0:00:12]}  Qxb2 {[%clk 0:00:10]} 43. Nc6 {[%clk 0:00:12]}  Qb3+ {[%clk 0:00:09]} 44. Kf2 {[%clk 0:00:11]}  Qa2+ {[%clk 0:00:09]} 45. Kg1 {[%clk 0:00:08]}  Qa1+ {[%clk 0:00:08]} 46. Kg2 {[%clk 0:00:08]}  Qa2+ {[%clk 0:00:09]} 47. Qf2 {[%clk 0:00:08]}  Qxf2+ {[%clk 0:00:08]} 48. Kxf2 {[%clk 0:00:08]}  Be6 {[%clk 0:00:09]} 49. g4 {[%clk 0:00:08]}  Kg7 {[%clk 0:00:09]} 50. Ke3 {[%clk 0:00:08]}  Kf7 {[%clk 0:00:07]} 51. Nd8+ {[%clk 0:00:06]}  Ke7 {[%clk 0:00:07]} 52. Nc6+ {[%clk 0:00:05]}  Kd6 {[%clk 0:00:07]} 53. Nb4 {[%clk 0:00:05]}  Bc4 {[%clk 0:00:07]} 54. Nc2 {[%clk 0:00:04]}  Bf1 {[%clk 0:00:07]} 55. Kf2 {[%clk 0:00:04]}  Bc4 {[%clk 0:00:06]} 56. Ne3 {[%clk 0:00:05]}  Be6 {[%clk 0:00:06]} 57. Ke2 {[%clk 0:00:05]}  Kc5 {[%clk 0:00:06]} 58. Kd3 {[%clk 0:00:06]}  Kb4 {[%clk 0:00:06]} 59. Nd5+ {[%clk 0:00:03]}  Bxd5 {[%clk 0:00:03]} 60. exd5 {[%clk 0:00:04]}  Kc5 {[%clk 0:00:04]} 61. Ke4 {[%clk 0:00:05]}  Kd6 {[%clk 0:00:04]} 62. Kf5 {[%clk 0:00:06]}  Kxd5 {[%clk 0:00:05]} 63. Kxf6 {[%clk 0:00:06]}  Kd4 {[%clk 0:00:04]} 64. Kf5 {[%clk 0:00:02]}  Ke3 {[%clk 0:00:04]} 65. Kxe5 {[%clk 0:00:02]}  Kxf3 {[%clk 0:00:05]} 66. Kf5 {[%clk 0:00:03]}  Kg3 {[%clk 0:00:05]} 67. Kg6 {[%clk 0:00:04]}  Kxh3 {[%clk 0:00:06]} 68. Kh5 {[%clk 0:00:04]}  Kg3 {[%clk 0:00:06]} 69. Kxh6 {[%clk 0:00:05]}  Kxg4 {[%clk 0:00:07]} 0-1


[Site "https://www.chess.com"]

[Event "Titled Tuesday Blitz May 03 Early 2022"]
[White "Petrova, Irina"]
[Black "Odegov, Artem"]
[WhiteFideId "14124122"]
[BlackFideId "34183644"]
[WhiteElo "1993"]
[BlackElo "2286"]
[Result "1-0"]
[Round "11"]
[TimeControl "180+1"]
[Date "2022.05.03"]
[WhiteClock "0:00:22"]
[BlackClock "0:00:15"]

1. e4 {[%clk 0:03:00]}  e6 {[%clk 0:02:59]} 2. d4 {[%clk 0:02:59]}  d5 {[%clk 0:02:59]} 3. Nc3 {[%clk 0:02:59]}  Bb4 {[%clk 0:02:58]} 4. Ne2 {[%clk 0:02:58]}  dxe4 {[%clk 0:02:58]} 5. a3 {[%clk 0:02:58]}  Be7 {[%clk 0:02:56]} 6. g4 {[%clk 0:02:55]}  Nf6 {[%clk 0:02:57]} 7. g5 {[%clk 0:02:54]}  Nd5 {[%clk 0:02:57]} 8. Nxe4 {[%clk 0:02:53]}  b6 {[%clk 0:02:58]} 9. c4 {[%clk 0:02:47]}  f5 {[%clk 0:02:52]} 10. N4g3 {[%clk 0:02:14]}  Bb7 {[%clk 0:02:08]} 11. cxd5 {[%clk 0:02:12]}  Bxd5 {[%clk 0:02:09]} 12. Rg1 {[%clk 0:02:06]}  Nc6 {[%clk 0:02:09]} 13. Nc3 {[%clk 0:01:59]}  O-O {[%clk 0:02:08]} 14. Bf4 {[%clk 0:01:51]}  Bxg5 {[%clk 0:00:44]} 15. Nxd5 {[%clk 0:01:49]}  exd5 {[%clk 0:00:42]} 16. Bxg5 {[%clk 0:01:35]}  Qxg5 {[%clk 0:00:43]} 17. Bb5 {[%clk 0:01:31]}  Na5 {[%clk 0:00:14]} 18. Ne2 {[%clk 0:01:19]}  Qf6 {[%clk 0:00:12]} 19. b4 {[%clk 0:01:10]}  Nc4 {[%clk 0:00:11]} 20. Bxc4 {[%clk 0:01:10]}  dxc4 {[%clk 0:00:12]} 21. Kf1 {[%clk 0:01:04]}  Rae8 {[%clk 0:00:11]} 22. Nf4 {[%clk 0:01:01]}  b5 {[%clk 0:00:10]} 23. Nh5 {[%clk 0:00:59]}  Qh4 {[%clk 0:00:10]} 24. Rxg7+ {[%clk 0:00:57]}  Kh8 {[%clk 0:00:09]} 25. d5 {[%clk 0:00:43]}  Qh3+ {[%clk 0:00:04]} 26. Kg1 {[%clk 0:00:42]}  Re4 {[%clk 0:00:03]} 27. Rg3 {[%clk 0:00:39]}  Qh4 {[%clk 0:00:03]} 28. Ra2 {[%clk 0:00:33]}  f4 {[%clk 0:00:03]} 29. Qa1+ {[%clk 0:00:32]}  Rf6 {[%clk 0:00:01]} 30. Qxf6+ {[%clk 0:00:32]}  Qxf6 {[%clk 0:00:01]} 31. Nxf6 {[%clk 0:00:32]}  Re1+ {[%clk 0:00:01]} 32. Kg2 {[%clk 0:00:33]}  fxg3 {[%clk 0:00:02]} 33. hxg3 {[%clk 0:00:32]}  Rb1 {[%clk 0:00:03]} 34. Re2 {[%clk 0:00:30]}  Rd1 {[%clk 0:00:03]} 35. g4 {[%clk 0:00:27]}  Kg7 {[%clk 0:00:02]} 36. Ne8+ {[%clk 0:00:27]}  Kg6 {[%clk 0:00:03]} 37. Nxc7 {[%clk 0:00:28]}  c3 {[%clk 0:00:03]} 38. Nxb5 {[%clk 0:00:25]}  Rd2 {[%clk 0:00:03]} 39. Rxd2 {[%clk 0:00:24]}  cxd2 {[%clk 0:00:04]} 40. Nc3 {[%clk 0:00:25]}  Kf6 {[%clk 0:00:05]} 41. Kf1 {[%clk 0:00:24]}  Ke5 {[%clk 0:00:05]} 42. Ke2 {[%clk 0:00:24]}  Kd4 {[%clk 0:00:06]} 43. Kxd2 {[%clk 0:00:24]}  Ke5 {[%clk 0:00:07]} 44. Ke3 {[%clk 0:00:24]}  Kd6 {[%clk 0:00:08]} 45. Kd4 {[%clk 0:00:24]}  Kd7 {[%clk 0:00:09]} 46. Kc5 {[%clk 0:00:24]}  Ke7 {[%clk 0:00:10]} 47. d6+ {[%clk 0:00:24]}  Kd7 {[%clk 0:00:11]} 48. Kd5 {[%clk 0:00:25]}  Kd8 {[%clk 0:00:11]} 49. Kc6 {[%clk 0:00:25]}  Kc8 {[%clk 0:00:12]} 50. d7+ {[%clk 0:00:25]}  Kd8 {[%clk 0:00:13]} 51. Ne4 {[%clk 0:00:22]}  h5 {[%clk 0:00:14]} 52. Nc5 {[%clk 0:00:22]}  a5 {[%clk 0:00:15]} 53. Kd6 {[%clk 0:00:22]}  axb4 {[%clk 0:00:15]} 54. Ne6# {[%clk 0:00:22]} 1-0


[Site "https://www.chess.com"]

[Event "Titled Tuesday Blitz May 03 Early 2022"]
[White "Pranav, V"]
[Black "Rohith Krishna S"]
[WhiteFideId "25060783"]
[BlackFideId "46617051"]
[WhiteElo "2349"]
[BlackElo "2117"]
[Result "1-0"]
[Round "11"]
[TimeControl "180+1"]
[Date "2022.05.03"]
[WhiteClock "0:01:25"]
[BlackClock "0:01:07"]

1. Nf3 {[%clk 0:03:00]}  Nf6 {[%clk 0:02:54]} 2. g3 {[%clk 0:03:01]}  g6 {[%clk 0:02:55]} 3. Bg2 {[%clk 0:03:01]}  Bg7 {[%clk 0:02:55]} 4. O-O {[%clk 0:03:02]}  O-O {[%clk 0:02:56]} 5. d3 {[%clk 0:03:03]}  d6 {[%clk 0:02:56]} 6. Nbd2 {[%clk 0:03:03]}  c5 {[%clk 0:02:55]} 7. e4 {[%clk 0:03:03]}  Nc6 {[%clk 0:02:56]} 8. Re1 {[%clk 0:03:04]}  Rb8 {[%clk 0:02:56]} 9. h3 {[%clk 0:03:02]}  b5 {[%clk 0:02:56]} 10. Nf1 {[%clk 0:03:03]}  a5 {[%clk 0:02:55]} 11. Bf4 {[%clk 0:03:03]}  Nd7 {[%clk 0:02:54]} 12. Qc1 {[%clk 0:03:01]}  Re8 {[%clk 0:02:53]} 13. Bh6 {[%clk 0:03:01]}  Bh8 {[%clk 0:02:53]} 14. Ne3 {[%clk 0:03:02]}  a4 {[%clk 0:02:51]} 15. a3 {[%clk 0:03:01]}  Nd4 {[%clk 0:02:46]} 16. Nxd4 {[%clk 0:03:01]}  cxd4 {[%clk 0:02:47]} 17. Nd5 {[%clk 0:03:00]}  Nb6 {[%clk 0:02:40]} 18. Nb4 {[%clk 0:02:57]}  Bb7 {[%clk 0:02:40]} 19. f4 {[%clk 0:02:53]}  Qc7 {[%clk 0:02:38]} 20. Qd2 {[%clk 0:02:52]}  Rbc8 {[%clk 0:02:34]} 21. h4 {[%clk 0:02:50]}  Nd7 {[%clk 0:02:30]} 22. Bh3 {[%clk 0:02:47]}  Rcd8 {[%clk 0:02:28]} 23. Rf1 {[%clk 0:02:35]}  Nc5 {[%clk 0:02:28]} 24. Qf2 {[%clk 0:02:30]}  Bc8 {[%clk 0:02:22]} 25. Nd5 {[%clk 0:02:19]}  Qa7 {[%clk 0:02:21]} 26. Bxc8 {[%clk 0:02:14]}  Rxc8 {[%clk 0:02:20]} 27. f5 {[%clk 0:02:05]}  e5 {[%clk 0:02:05]} 28. Qf3 {[%clk 0:01:46]}  Rb8 {[%clk 0:01:47]} 29. Rf2 {[%clk 0:01:46]}  Qd7 {[%clk 0:01:42]} 30. Raf1 {[%clk 0:01:44]}  gxf5 {[%clk 0:01:37]} 31. Qxf5 {[%clk 0:01:36]}  Re6 {[%clk 0:01:28]} 32. Qxf7+ {[%clk 0:01:32]}  Qxf7 {[%clk 0:01:24]} 33. Rxf7 {[%clk 0:01:33]}  Bg7 {[%clk 0:01:07]} 34. Rxg7+ {[%clk 0:01:24]}  Kh8 {[%clk 0:01:07]} 35. Nf6 {[%clk 0:01:25]} 1-0


[Site "https://www.chess.com"]

[Event "Titled Tuesday Blitz May 03 Early 2022"]
[White "Reprintsev, Alexander"]
[Black "Cunha, Lucas Aguiar"]
[WhiteFideId "14100541"]
[BlackFideId "2125404"]
[WhiteElo "2108"]
[BlackElo "2361"]
[Result "0-1"]
[Round "11"]
[TimeControl "180+1"]
[Date "2022.05.03"]
[WhiteClock "0:00:11"]
[BlackClock "0:01:25"]

1. e4 {[%clk 0:02:58]}  c5 {[%clk 0:02:59]} 2. b3 {[%clk 0:02:58]}  g6 {[%clk 0:02:51]} 3. Bb2 {[%clk 0:02:58]}  Nf6 {[%clk 0:02:52]} 4. e5 {[%clk 0:02:59]}  Nh5 {[%clk 0:02:52]} 5. Qf3 {[%clk 0:02:54]}  Nc6 {[%clk 0:02:46]} 6. Bc4 {[%clk 0:02:43]}  e6 {[%clk 0:02:43]} 7. Qe3 {[%clk 0:02:36]}  a6 {[%clk 0:02:39]} 8. a4 {[%clk 0:02:35]}  Nb4 {[%clk 0:02:32]} 9. Na3 {[%clk 0:02:34]}  b5 {[%clk 0:02:31]} 10. Be2 {[%clk 0:02:23]}  Bb7 {[%clk 0:02:31]} 11. Bxh5 {[%clk 0:02:21]}  gxh5 {[%clk 0:02:30]} 12. Nf3 {[%clk 0:02:18]}  Rg8 {[%clk 0:02:26]} 13. O-O {[%clk 0:01:52]}  Bc6 {[%clk 0:02:22]} 14. axb5 {[%clk 0:01:51]}  axb5 {[%clk 0:02:22]} 15. c4 {[%clk 0:01:42]}  bxc4 {[%clk 0:02:19]} 16. Nxc4 {[%clk 0:01:42]}  Rxa1 {[%clk 0:02:08]} 17. Bxa1 {[%clk 0:01:41]}  Qa8 {[%clk 0:02:07]} 18. Kh1 {[%clk 0:01:35]}  Nc2 {[%clk 0:02:04]} 19. Qc3 {[%clk 0:01:26]}  Nd4 {[%clk 0:02:04]} 20. Na5 {[%clk 0:00:33]}  Bxf3 {[%clk 0:01:48]} 21. gxf3 {[%clk 0:00:32]}  Nxf3 {[%clk 0:01:48]} 22. Nc4 {[%clk 0:00:19]}  Nxd2+ {[%clk 0:01:44]} 23. f3 {[%clk 0:00:19]}  Nxf1 {[%clk 0:01:41]} 24. Nb6 {[%clk 0:00:13]}  Qa2 {[%clk 0:01:35]} 25. Bb2 {[%clk 0:00:11]}  Qb1 {[%clk 0:01:28]} 26. Bc1 {[%clk 0:00:11]}  Qg6 {[%clk 0:01:25]} 0-1


[Site "https://www.chess.com"]

[Event "Titled Tuesday Blitz May 03 Early 2022"]
[White "Richter, Nils"]
[Black "D`Arruda, Ricardo D."]
[WhiteFideId "12990809"]
[BlackFideId "100692"]
[WhiteElo "2243"]
[BlackElo "2426"]
[Result "1-0"]
[Round "11"]
[TimeControl "180+1"]
[Date "2022.05.03"]
[WhiteClock "0:00:17"]
[BlackClock "0:00:04"]

1. e4 {[%clk 0:03:00]}  c5 {[%clk 0:02:56]} 2. Nf3 {[%clk 0:03:00]}  Nc6 {[%clk 0:02:56]} 3. b3 {[%clk 0:03:01]}  e6 {[%clk 0:02:56]} 4. Bb2 {[%clk 0:03:01]}  d5 {[%clk 0:02:56]} 5. exd5 {[%clk 0:02:59]}  exd5 {[%clk 0:02:56]} 6. Bb5 {[%clk 0:03:00]}  Nf6 {[%clk 0:02:54]} 7. Qe2+ {[%clk 0:02:59]}  Be6 {[%clk 0:02:50]} 8. Ng5 {[%clk 0:02:56]}  Qe7 {[%clk 0:02:31]} 9. Nxe6 {[%clk 0:02:55]}  fxe6 {[%clk 0:02:25]} 10. O-O {[%clk 0:02:54]}  O-O-O {[%clk 0:02:17]} 11. Bxc6 {[%clk 0:02:51]}  bxc6 {[%clk 0:02:18]} 12. d3 {[%clk 0:02:44]}  Kb7 {[%clk 0:02:17]} 13. Nd2 {[%clk 0:02:44]}  Re8 {[%clk 0:02:07]} 14. Nf3 {[%clk 0:02:42]}  Qc7 {[%clk 0:02:03]} 15. Be5 {[%clk 0:02:41]}  Bd6 {[%clk 0:01:58]} 16. c4 {[%clk 0:02:42]}  Nd7 {[%clk 0:01:52]} 17. Bxd6 {[%clk 0:02:36]}  Qxd6 {[%clk 0:01:53]} 18. d4 {[%clk 0:02:32]}  cxd4 {[%clk 0:01:47]} 19. Nxd4 {[%clk 0:02:31]}  e5 {[%clk 0:01:47]} 20. Nf5 {[%clk 0:02:20]}  Qf6 {[%clk 0:01:46]} 21. cxd5 {[%clk 0:02:16]}  Qxf5 {[%clk 0:01:45]} 22. dxc6+ {[%clk 0:02:16]}  Kxc6 {[%clk 0:01:46]} 23. Qa6+ {[%clk 0:02:13]}  Kc7 {[%clk 0:01:29]} 24. Qxa7+ {[%clk 0:02:04]}  Kd8 {[%clk 0:01:29]} 25. Rfd1 {[%clk 0:02:02]}  Ke7 {[%clk 0:01:27]} 26. Rd2 {[%clk 0:01:54]}  Ra8 {[%clk 0:01:17]} 27. Qe3 {[%clk 0:01:47]}  Rad8 {[%clk 0:01:10]} 28. Rad1 {[%clk 0:01:46]}  Qf6 {[%clk 0:00:45]} 29. Qa7 {[%clk 0:01:40]}  Qe6 {[%clk 0:00:43]} 30. h3 {[%clk 0:01:31]}  Rhe8 {[%clk 0:00:41]} 31. b4 {[%clk 0:01:29]}  Qc6 {[%clk 0:00:20]} 32. a4 {[%clk 0:01:26]}  Ke6 {[%clk 0:00:19]} 33. b5 {[%clk 0:01:22]}  Qc8 {[%clk 0:00:16]} 34. Rd6+ {[%clk 0:01:19]}  Ke7 {[%clk 0:00:15]} 35. b6 {[%clk 0:01:16]}  e4 {[%clk 0:00:04]} 36. b7 {[%clk 0:01:10]}  Qb8 {[%clk 0:00:03]} 37. Qa6 {[%clk 0:00:51]}  Nf6 {[%clk 0:00:03]} 38. Rxd8 {[%clk 0:00:42]}  Rxd8 {[%clk 0:00:04]} 39. Rxd8 {[%clk 0:00:39]}  Qxd8 {[%clk 0:00:05]} 40. Qa7 {[%clk 0:00:29]}  Nd7 {[%clk 0:00:06]} 41. a5 {[%clk 0:00:28]}  Qb8 {[%clk 0:00:06]} 42. Qa8 {[%clk 0:00:24]}  Kd6 {[%clk 0:00:05]} 43. a6 {[%clk 0:00:24]}  Kc7 {[%clk 0:00:05]} 44. a7 {[%clk 0:00:18]}  Qxb7 {[%clk 0:00:04]} 45. Qg8 {[%clk 0:00:17]} 1-0


[Site "https://www.chess.com"]

[Event "Titled Tuesday Blitz May 03 Early 2022"]
[White "Rosen, Eric"]
[Black "Gharibyan, Mamikon"]
[WhiteFideId "2032562"]
[BlackFideId "13308300"]
[WhiteElo "2362"]
[BlackElo "2254"]
[Result "1-0"]
[Round "11"]
[TimeControl "180+1"]
[Date "2022.05.03"]
[WhiteClock "0:00:24"]
[BlackClock "0:01:11"]

1. d4 {[%clk 0:03:00]}  Nf6 {[%clk 0:02:59]} 2. Bf4 {[%clk 0:03:01]}  c5 {[%clk 0:02:52]} 3. e3 {[%clk 0:03:01]}  d5 {[%clk 0:02:50]} 4. Nf3 {[%clk 0:03:01]}  Nc6 {[%clk 0:02:50]} 5. Nbd2 {[%clk 0:03:01]}  Bg4 {[%clk 0:02:50]} 6. c3 {[%clk 0:03:01]}  e6 {[%clk 0:02:50]} 7. Qa4 {[%clk 0:03:02]}  Nd7 {[%clk 0:02:49]} 8. Bb5 {[%clk 0:03:01]}  Qb6 {[%clk 0:02:48]} 9. Ne5 {[%clk 0:02:56]}  Ndxe5 {[%clk 0:02:47]} 10. Bxe5 {[%clk 0:02:55]}  a6 {[%clk 0:02:43]} 11. Bxc6+ {[%clk 0:02:43]}  Qxc6 {[%clk 0:02:44]} 12. Qxc6+ {[%clk 0:02:44]}  bxc6 {[%clk 0:02:42]} 13. dxc5 {[%clk 0:02:44]}  f6 {[%clk 0:02:39]} 14. Bd6 {[%clk 0:02:33]}  Bxd6 {[%clk 0:02:38]} 15. cxd6 {[%clk 0:02:34]}  Kd7 {[%clk 0:02:39]} 16. f3 {[%clk 0:02:35]}  Bf5 {[%clk 0:02:38]} 17. O-O-O {[%clk 0:02:31]}  Kxd6 {[%clk 0:02:35]} 18. e4 {[%clk 0:02:30]}  Bg6 {[%clk 0:02:35]} 19. exd5 {[%clk 0:02:27]}  exd5 {[%clk 0:02:34]} 20. Rhe1 {[%clk 0:02:21]}  Rhe8 {[%clk 0:02:33]} 21. b4 {[%clk 0:02:09]}  a5 {[%clk 0:02:25]} 22. Nc4+ {[%clk 0:02:06]}  Kc7 {[%clk 0:02:23]} 23. Nxa5 {[%clk 0:02:06]}  h5 {[%clk 0:02:09]} 24. Kd2 {[%clk 0:02:05]}  h4 {[%clk 0:02:09]} 25. Rxe8 {[%clk 0:02:05]}  Rxe8 {[%clk 0:02:06]} 26. Re1 {[%clk 0:02:05]}  Rg8 {[%clk 0:01:57]} 27. Nb3 {[%clk 0:01:51]}  Ra8 {[%clk 0:01:54]} 28. Na5 {[%clk 0:01:39]}  Kd6 {[%clk 0:01:53]} 29. a4 {[%clk 0:01:31]}  Ra7 {[%clk 0:01:48]} 30. Ra1 {[%clk 0:01:18]}  h3 {[%clk 0:01:48]} 31. g3 {[%clk 0:01:18]}  Bh5 {[%clk 0:01:47]} 32. g4 {[%clk 0:01:17]}  Be8 {[%clk 0:01:25]} 33. Nb3 {[%clk 0:01:16]}  f5 {[%clk 0:01:23]} 34. gxf5 {[%clk 0:01:00]}  Bd7 {[%clk 0:01:19]} 35. Nd4 {[%clk 0:00:57]}  Ke5 {[%clk 0:01:17]} 36. a5 {[%clk 0:00:51]}  Kf4 {[%clk 0:01:14]} 37. Rg1 {[%clk 0:00:42]}  Bxf5 {[%clk 0:01:12]} 38. Nxc6 {[%clk 0:00:34]}  Rc7 {[%clk 0:01:10]} 39. Nd4 {[%clk 0:00:34]}  Bc8 {[%clk 0:01:11]} 40. Rg6 {[%clk 0:00:24]} 1-0


[Site "https://www.chess.com"]

[Event "Titled Tuesday Blitz May 03 Early 2022"]
[White "Samant Aditya S"]
[Black "Shimanov, Aleksandr"]
[WhiteFideId "35080580"]
[BlackFideId "4198603"]
[WhiteElo "1916"]
[BlackElo "2636"]
[Result "0-1"]
[Round "11"]
[TimeControl "180+1"]
[Date "2022.05.03"]
[WhiteClock "0:00:03"]
[BlackClock "0:00:12"]

1. e4 {[%clk 0:03:00]}  c6 {[%clk 0:02:55]} 2. d4 {[%clk 0:03:00]}  d5 {[%clk 0:02:54]} 3. Nc3 {[%clk 0:02:59]}  dxe4 {[%clk 0:02:51]} 4. Nxe4 {[%clk 0:03:00]}  Nf6 {[%clk 0:02:51]} 5. Nxf6+ {[%clk 0:03:00]}  exf6 {[%clk 0:02:51]} 6. c3 {[%clk 0:03:01]}  Bd6 {[%clk 0:02:50]} 7. Bd3 {[%clk 0:03:02]}  Na6 {[%clk 0:02:49]} 8. Ne2 {[%clk 0:02:58]}  Nc7 {[%clk 0:02:38]} 9. Bf4 {[%clk 0:02:55]}  h5 {[%clk 0:02:21]} 10. O-O {[%clk 0:02:51]}  h4 {[%clk 0:02:19]} 11. Re1 {[%clk 0:02:38]}  Kf8 {[%clk 0:02:18]} 12. Qd2 {[%clk 0:02:35]}  h3 {[%clk 0:02:15]} 13. g3 {[%clk 0:02:30]}  Nd5 {[%clk 0:02:14]} 14. Bxd6+ {[%clk 0:02:30]}  Qxd6 {[%clk 0:02:15]} 15. c4 {[%clk 0:02:28]}  Ne7 {[%clk 0:02:14]} 16. Qf4 {[%clk 0:02:25]}  Qxf4 {[%clk 0:02:01]} 17. Nxf4 {[%clk 0:02:26]}  Bg4 {[%clk 0:02:01]} 18. Be2 {[%clk 0:02:04]}  Bf5 {[%clk 0:01:57]} 19. Rad1 {[%clk 0:01:59]}  Rd8 {[%clk 0:01:57]} 20. Bf3 {[%clk 0:01:55]}  g5 {[%clk 0:01:53]} 21. Ne2 {[%clk 0:01:55]}  Kg7 {[%clk 0:01:43]} 22. Nc3 {[%clk 0:01:55]}  Rd7 {[%clk 0:01:42]} 23. Rd2 {[%clk 0:01:40]}  Rhd8 {[%clk 0:01:41]} 24. Red1 {[%clk 0:01:41]}  c5 {[%clk 0:01:29]} 25. Ne2 {[%clk 0:01:02]}  Ng6 {[%clk 0:01:17]} 26. Bd5 {[%clk 0:00:41]}  Be6 {[%clk 0:01:09]} 27. Bxe6 {[%clk 0:00:19]}  fxe6 {[%clk 0:01:08]} 28. f4 {[%clk 0:00:06]}  gxf4 {[%clk 0:01:00]} 29. gxf4 {[%clk 0:00:07]}  Nh4 {[%clk 0:01:01]} 30. Kf2 {[%clk 0:00:07]}  Nf5 {[%clk 0:01:00]} 31. d5 {[%clk 0:00:07]}  Nd6 {[%clk 0:00:48]} 32. Nc3 {[%clk 0:00:01]}  Nxc4 {[%clk 0:00:47]} 33. Re2 {[%clk 0:00:02]}  exd5 {[%clk 0:00:47]} 34. b3 {[%clk 0:00:02]}  Nb6 {[%clk 0:00:43]} 35. Rd3 {[%clk 0:00:03]}  Rh8 {[%clk 0:00:37]} 36. a4 {[%clk 0:00:02]}  a5 {[%clk 0:00:27]} 37. Nb5 {[%clk 0:00:02]}  d4 {[%clk 0:00:25]} 38. Rg3+ {[%clk 0:00:03]}  Kf7 {[%clk 0:00:25]} 39. f5 {[%clk 0:00:03]}  Nd5 {[%clk 0:00:25]} 40. Re6 {[%clk 0:00:04]}  Ne3 {[%clk 0:00:18]} 41. Nd6+ {[%clk 0:00:04]}  Rxd6 {[%clk 0:00:19]} 42. Rxd6 {[%clk 0:00:05]}  Nxf5 {[%clk 0:00:19]} 43. Rd7+ {[%clk 0:00:03]}  Ke6 {[%clk 0:00:20]} 44. Rxb7 {[%clk 0:00:04]}  Nxg3 {[%clk 0:00:20]} 45. Kxg3 {[%clk 0:00:05]}  d3 {[%clk 0:00:21]} 46. Kf2 {[%clk 0:00:03]}  Rg8 {[%clk 0:00:17]} 47. Rh7 {[%clk 0:00:02]}  Rg2+ {[%clk 0:00:15]} 48. Ke1 {[%clk 0:00:03]}  Rxh2 {[%clk 0:00:15]} 49. Rh5 {[%clk 0:00:03]}  d2+ {[%clk 0:00:13]} 50. Kd1 {[%clk 0:00:03]}  f5 {[%clk 0:00:13]} 51. Rh4 {[%clk 0:00:03]}  Ke5 {[%clk 0:00:14]} 52. Rh6 {[%clk 0:00:03]}  f4 {[%clk 0:00:14]} 53. Rh5+ {[%clk 0:00:04]}  Ke4 {[%clk 0:00:14]} 54. Rh8 {[%clk 0:00:05]}  f3 {[%clk 0:00:14]} 55. Rh4+ {[%clk 0:00:05]}  Kd3 {[%clk 0:00:14]} 56. Rxh3 {[%clk 0:00:04]}  Rxh3 {[%clk 0:00:13]} 57. b4 {[%clk 0:00:04]}  f2 {[%clk 0:00:13]} 58. bxa5 {[%clk 0:00:03]}  c4 {[%clk 0:00:12]} 59. a6 {[%clk 0:00:03]}  c3 {[%clk 0:00:12]} 0-1


[Site "https://www.chess.com"]